lending/lending_fUSD_20240721
["ID","MTS","AMOUNT","RATE_DAILY","PERIOD"]
[332798955,1721532639418,-1000.0,0.00018825,2]
[332798957,1721532639428,-360.4849107,0.00018934,2]
[332798959,1721532639437,-153.98568546,0.00018977,2]
[332798961,1721532639448,-250.0,0.00019,2]
[332798963,1721532639457,-262.88,0.0001904,2]
[332798965,1721532639467,-26583.42,0.00019077,2]
[332798967,1721532639477,-500.0,0.00019123,2]
[332798969,1721532639487,-200.0,0.00019123,2]
[332798971,1721532639496,-497.07340276,0.00019311,2]
[332798973,1721532639506,-154.23770086,0.00019525,2]
[332798975,1721532639515,-497.07340276,0.00019747,2]
[332798977,1721532639525,-400.0,0.00019942,2]
[332798979,1721532639534,-10381.63630899,0.00019999,2]
[332798981,1721532639543,-3000.0,0.0002,2]
[332798983,1721532639552,-360.4849107,0.00020127,2]
[332798985,1721532639562,-497.07340276,0.00020428,2]
[332798987,1721532639571,-153.98568546,0.00020432,2]
[332798989,1721532639580,-497.07340276,0.00020433,2]
[332798991,1721532639589,-1000.0,0.00020536,2]
[332798993,1721532639599,-271.55,0.00020552,2]
[332798995,1721532639608,-163.3510568,0.00020663,2]
[332798997,1721532639617,-158.64981098,0.00020794,2]
[332798999,1721532639628,-151.0,0.00020883,2]
[332799001,1721532639637,-497.07340276,0.00020887,2]
[332799003,1721532639647,-5000.0,0.00020899,2]
[332799005,1721532639656,-166.75284296,0.0002097,2]
[332799007,1721532639666,-5000.0,0.00020999,2]
[332799009,1721532639675,-300.0,0.00021,2]
[332799011,1721532639685,-279.82,0.0002103,2]
[332799013,1721532639694,-497.07340276,0.0002119,2]
[332799015,1721532639705,-360.4849107,0.0002132,2]
[332799017,1721532639715,-5203.504,0.00021346,2]
[332799019,1721532639724,-38329.0,0.00021346,2]
[332799021,1721532639733,-167.0,0.00021598,2]
[332799023,1721532639742,-497.07340276,0.00021697,2]
[332799025,1721532639752,-497.07340276,0.00021778,2]
[332799027,1721532639761,-225.0,0.000218,2]
[332799029,1721532639771,-356.0,0.000218,2]
[332799031,1721532639780,-1000.0,0.000218,2]
[332799033,1721532639789,-574.75,0.00021918,2]
[332799035,1721532639799,-150.0,0.00021918,2]
[332799037,1721532639808,-310.58,0.00021918,2]
[332799038,1721532639817,-500.0,0.00021918,2]
[332799040,1721532639827,-500.0,0.00021918,2]
[332799050,1721532639917,-500.0,0.00021918,2]
[332799052,1721532639928,-500.0,0.00021918,2]
[332799054,1721532639937,-500.0,0.00021918,2]
[332799056,1721532639947,-500.0,0.00021918,2]
[332799058,1721532639956,-500.0,0.00021918,2]
[332799060,1721532639965,-500.0,0.00021918,2]
[332799062,1721532639975,-500.0,0.00021918,2]
[332799064,1721532639984,-500.0,0.00021918,2]
[332799066,1721532639994,-500.0,0.00021918,2]
[332799068,1721532640005,-500.0,0.00021918,2]
[332799070,1721532640014,-500.0,0.00021918,2]
[332799072,1721532640023,-500.0,0.00021918,2]
[332799074,1721532640034,-500.0,0.00021918,2]
[332799076,1721532640044,-500.0,0.00021918,2]
[332799078,1721532640054,-500.0,0.00021918,2]
[332799080,1721532640064,-500.0,0.00021918,2]
[332799082,1721532640073,-500.0,0.00021918,2]
[332799084,1721532640083,-500.0,0.00021918,2]
[332799086,1721532640093,-500.0,0.00021918,2]
[332799088,1721532640103,-500.0,0.00021918,2]
[332799090,1721532640113,-500.0,0.00021918,2]
[332799092,1721532640123,-500.0,0.00021918,2]
[332799094,1721532640132,-500.0,0.00021918,2]
[332799096,1721532640141,-500.0,0.00021918,2]
[332799098,1721532640151,-500.0,0.00021918,2]
[332799100,1721532640160,-500.0,0.00021918,2]
[332799102,1721532640170,-500.0,0.00021918,2]
[332799104,1721532640180,-500.0,0.00021918,2]
[332799106,1721532640189,-500.0,0.00021918,2]
[332799108,1721532640199,-500.0,0.00021918,2]
[332799110,1721532640208,-500.0,0.00021918,2]
[332799112,1721532640218,-500.0,0.00021918,2]
[332799114,1721532640227,-500.0,0.00021918,2]
[332799116,1721532640236,-500.0,0.00021918,2]
[332799118,1721532640246,-500.0,0.00021918,2]
[332799120,1721532640256,-500.0,0.00021918,2]
[332799122,1721532640266,-500.0,0.00021918,2]
[332799124,1721532640275,-500.0,0.00021918,2]
[332799126,1721532640284,-500.0,0.00021918,2]
[332799128,1721532640294,-500.0,0.00021918,2]
[332799130,1721532640304,-500.0,0.00021918,2]
[332799132,1721532640314,-500.0,0.00021918,2]
[332799134,1721532640323,-500.0,0.00021918,2]
[332799136,1721532640333,-500.0,0.00021918,2]
[332799138,1721532640346,-500.0,0.00021918,2]
[332799140,1721532640355,-500.0,0.00021918,2]
[332799142,1721532640365,-500.0,0.00021918,2]
[332799144,1721532640375,-500.0,0.00021918,2]
[332799146,1721532640386,-500.0,0.00021918,2]
[332799148,1721532640397,-500.0,0.00021918,2]
[332799150,1721532640407,-500.0,0.00021918,2]
[332799152,1721532640418,-500.0,0.00021918,2]
[332799154,1721532640428,-500.0,0.00021918,2]
[332799156,1721532640438,-500.0,0.00021918,2]
[332799158,1721532640447,-500.0,0.00021918,2]
[332799160,1721532640457,-500.0,0.00021918,2]
[332799162,1721532640467,-500.0,0.00021918,2]
[332799164,1721532640476,-500.0,0.00021918,2]
[332799166,1721532640485,-500.0,0.00021918,2]
[332799168,1721532640495,-500.0,0.00021918,2]
[332799170,1721532640509,-500.0,0.00021918,2]
[332799172,1721532640519,-500.0,0.00021918,2]
[332799174,1721532640528,-500.0,0.00021918,2]
[332799175,1721532640538,-500.0,0.00021918,2]
[332799178,1721532640548,-500.0,0.00021918,2]
[332799180,1721532640557,-500.0,0.00021918,2]
[332799181,1721532640567,-500.0,0.00021918,2]
[332799184,1721532640577,-500.0,0.00021918,2]
[332799186,1721532640586,-500.0,0.00021918,2]
[332799188,1721532640596,-500.0,0.00021918,2]
[332799190,1721532640605,-500.0,0.00021918,2]
[332799192,1721532640616,-500.0,0.00021918,2]
[332799194,1721532640625,-500.0,0.00021918,2]
[332799196,1721532640636,-500.0,0.00021918,2]
[332799198,1721532640645,-500.0,0.00021918,2]
[332799199,1721532640655,-790.75211985,0.00022,10]
[332799201,1721532640665,-400.0,0.00022158,2]
[332799203,1721532640674,-497.07340276,0.00022176,2]
[332799205,1721532640684,-497.07340276,0.00022185,2]
[332799207,1721532640694,-158.64981098,0.00022219,2]
[332799209,1721532640703,-559.0,0.0002231,2]
[332799212,1721532640714,-167.0,0.00022311,2]
[332799214,1721532640723,-151.0,0.00022485,2]
[332799216,1721532640733,-150.0,0.00022495,2]
[332799218,1721532640742,-360.4849107,0.00022514,2]
[332799220,1721532640754,-153.98568546,0.00022549,2]
[332799222,1721532640763,-153.98568546,0.0002269,2]
[332799224,1721532640773,-271.55,0.00022816,2]
[332799226,1721532640782,-497.07340276,0.00022865,2]
[332799228,1721532640793,-153.98568546,0.00022921,2]
[332799230,1721532640803,-151.36587027,0.00022921,2]
[332799232,1721532640812,-350.0,0.00023,2]
[332799234,1721532640822,-167.0,0.00023024,2]
[332799236,1721532640831,-150.0,0.00023071,2]
[332799238,1721532640841,-180.0,0.00023205,2]
[332799240,1721532640851,-160.60863664,0.00023238,2]
[332799242,1721532640861,-151.69639921,0.00023273,2]
[332799244,1721532640870,-153.98568546,0.00023418,2]
[332799246,1721532640880,-155.47923129,0.00023451,2]
[332799248,1721532640889,-2837.16238839,0.00023451,2]
[332799250,1721532640898,-2499.56415535,0.00023451,2]
[332799252,1721532640909,-497.07340276,0.00023589,2]
[332799254,1721532640918,-150.0,0.00023648,2]
[332799256,1721532640927,-500.0,0.00023655,2]
[332799258,1721532640937,-500.0,0.00023655,2]
[332799260,1721532640946,-500.0,0.00023655,2]
[332799262,1721532640955,-500.0,0.00023655,2]
[332799263,1721532640966,-500.0,0.00023655,2]
[332799266,1721532640976,-297.88,0.00023655,2]
[332799268,1721532640987,-500.0,0.00023655,2]
[332799270,1721532640997,-500.0,0.00023655,2]
[332799271,1721532641007,-506.53,0.00023655,2]
[332799273,1721532641017,-500.0,0.00023655,2]
[332799275,1721532641027,-153.98568546,0.00023656,2]
[332799276,1721532641037,-153.82027856,0.000237,2]
[332799277,1721532641046,-360.4849107,0.00023707,2]
[332799278,1721532641056,-166.66666666,0.00023715,2]
[332799279,1721532641065,-167.0,0.00023737,2]
[332799280,1721532641075,-497.07340276,0.00023749,2]
[332799281,1721532641085,-151.36587027,0.00023802,2]
[332799282,1721532641094,-100000.0,0.0002389,2]
[332799283,1721532641104,-5400.0,0.000239,8]
[332799284,1721532641113,-241.04406767,0.00024,5]
[332799285,1721532641123,-151.0,0.00024088,2]
[332799286,1721532641132,-3000.0,0.000241,2]
[332799287,1721532641141,-1929.33186776,0.00024124,2]
[332799288,1721532641150,-1136.94020699,0.00024124,2]
[332799289,1721532641160,-155.0,0.00024124,2]
[332799290,1721532641169,-654.54688549,0.00024124,2]
[332799291,1721532641179,-3974.83128712,0.00024124,2]
[332799292,1721532641189,-1053.99969244,0.00024162,2]
[332799293,1721532641199,-150.0,0.00024192,2]
[332799294,1721532641208,-150.0,0.00024192,2]
[332799295,1721532641218,-150.0,0.00024192,2]
[332799296,1721532641228,-150.0,0.00024192,2]
[332799298,1721532641238,-150.0,0.00024225,2]
[332799300,1721532641248,-277.34033653,0.000243,2]
[332799302,1721532641259,-181.7853,0.0002431,2]
[332799304,1721532641268,-153.98568546,0.00024312,2]
[332799306,1721532641277,-153.98568546,0.00024345,2]
[332799308,1721532641288,-400.0,0.00024373,2]
[332799310,1721532641298,-497.07340276,0.0002442,2]
[332799312,1721532641308,-167.0,0.0002445,2]
[332799314,1721532641317,-7200.0,0.000245,8]
[332799316,1721532641327,-5941.19285388,0.00024554,2]
[332799318,1721532641337,-300.02,0.00024554,2]
[332799319,1721532641349,-492.0,0.000246,8]
[332799321,1721532641359,-264.0,0.000246,2]
[332799323,1721532641369,-9000.0,0.000246,8]
[332799325,1721532641379,-300.76287989,0.00024634,2]
[332799327,1721532641388,-908.8544916,0.00024649,2]
[332799329,1721532641398,-4791.0709947,0.00024649,2]
[332799331,1721532641408,-4267.3989761,0.00024649,2]
[332799333,1721532641419,-110543.94155227,0.00024655,3]
[332799335,1721532641429,-192.34569819,0.00024655,3]
[332799337,1721532641438,-448.7960396,0.00024655,2]
[332799339,1721532641448,-170.22769456,0.00024655,2]
[332799341,1721532641457,-155.0,0.00024655,2]
[332799343,1721532641466,-340.38044388,0.00024655,7]
[332799345,1721532641476,-152.0,0.00024662,9]
[332799347,1721532641485,-67573.7053405,0.00024683,2]
[332799349,1721532641495,-501.7325,0.000247,2]
[332799351,1721532641505,-1800.0,0.000247,9]
[332799353,1721532641514,-497.07340276,0.00024729,2]
[332799355,1721532641523,-1800.0,0.000248,9]
[332799357,1721532641532,-150.0,0.00024802,2]
[332799359,1721532641542,-213.0,0.0002481,2]
[332799360,1721532641551,-497.07340276,0.00024859,2]
[332799362,1721532641561,-161.49745473,0.00024883,2]
[332799364,1721532641570,-216.0,0.0002489,2]
[332799366,1721532641579,-188.54476616,0.00024899,2]
[332799368,1721532641589,-276.62111547,0.00024899,2]
[332799370,1721532641598,-257.63733743,0.00024899,2]
[332799372,1721532641607,-240.34565268,0.00024899,2]
[332799374,1721532641617,-2806.38132946,0.000249,4]
[332799376,1721532641627,-5000.0,0.000249,3]
[332799378,1721532641636,-470.25928802,0.000249,2]
[332799380,1721532641646,-5800.0,0.000249,2]
[332799382,1721532641655,-5036.0,0.000249,4]
[332799384,1721532641664,-1000.0,0.000249,2]
[332799386,1721532641674,-1000.0,0.000249,2]
[332799388,1721532641683,-169.35584346,0.000249,2]
[332799390,1721532641693,-161.49745473,0.000249,2]
[332799392,1721532641702,-1800.0,0.000249,9]
[332799394,1721532641712,-360.4849107,0.000249,2]
[332799396,1721532641721,-1447.33227478,0.000249,2]
[332799398,1721532641731,-9621.42058467,0.000249,2]
[332799400,1721532641740,-50110.03358941,0.000249,2]
[332799402,1721532641750,-2022.4432734,0.00024979,2]
[332799404,1721532641760,-379.69463918,0.00024979,2]
[332799406,1721532641770,-571.59981827,0.00024979,2]
[332799408,1721532641780,-2022.4432734,0.00024979,2]
[332799410,1721532641789,-1078.15324777,0.00024979,2]
[332799412,1721532641798,-327.8147916,0.00024979,2]
[332799414,1721532641808,-332.20697518,0.00024979,2]
[332799416,1721532641817,-155.0,0.00024979,2]
[332799418,1721532641827,-227.49811675,0.00024979,2]
[332799420,1721532641836,-321.92329226,0.00024979,2]
[332799422,1721532641846,-155.0,0.00024979,2]
[332799424,1721532641855,-998.0422051,0.00024983,2]
[332799426,1721532641866,-1087.2299186,0.00024983,2]
[332799428,1721532641875,-1176.4176321,0.00024983,2]
[332799430,1721532641885,-1265.6053456,0.00024983,2]
[332799433,1721532641895,-1354.7930591,0.00024983,2]
[332799435,1721532641904,-4338.2353858,0.00024983,2]
[332799437,1721532641914,-3885.3997769,0.00024983,2]
[332799439,1721532641923,-3432.564168,0.00024983,2]
[332799441,1721532641933,-2979.7285591,0.00024983,2]
[332799443,1721532641943,-2526.8929501,0.00024983,2]
[332799445,1721532641953,-3864.0590515,0.00024983,2]
[332799447,1721532641962,-3460.7191269,0.00024983,2]
[332799449,1721532641971,-3057.3792023,0.00024983,2]
[332799451,1721532641981,-2654.0392777,0.00024983,2]
[332799453,1721532641990,-2250.6993531,0.00024983,2]
[332799455,1721532642000,-61111.4748678,0.00024983,2]
[332799457,1721532642010,-54649.2443951,0.00024983,2]
[332799459,1721532642019,-48187.0139224,0.00024983,2]
[332799461,1721532642029,-41724.7834498,0.00024983,2]
[332799463,1721532642039,-35262.5529771,0.00024983,2]
[332799465,1721532642049,-153.0,0.00024984,2]
[332799467,1721532642059,-153.0,0.00024984,2]
[332799469,1721532642070,-219.41740957,0.00024989,2]
[332799471,1721532642080,-3051.00113365,0.00024989,2]
[332799473,1721532642090,-155.0,0.00024989,2]
[332799475,1721532642099,-60472.36351823,0.0002499,2]
[332799477,1721532642109,-151.0,0.0002499,7]
[332799479,1721532642118,-151.0,0.0002499,7]
[332799481,1721532642128,-151.0,0.0002499,7]
[332799483,1721532642137,-151.0,0.0002499,7]
[332799485,1721532642147,-290.046157,0.0002499,7]
[332799487,1721532642157,-290.046157,0.0002499,7]
[332799489,1721532642167,-151.0,0.0002499,7]
[332799491,1721532642176,-174.677227,0.0002499,7]
[332799493,1721532642186,-256.997777,0.0002499,7]
[332799495,1721532642196,-153.0,0.00024992,2]
[332799497,1721532642206,-153.0,0.00024992,2]
[332799499,1721532642216,-153.090979,0.00024996,7]
[332799501,1721532642226,-151.0,0.00024996,7]
[332799503,1721532642235,-160.566087,0.00024996,7]
[332799505,1721532642244,-151.0,0.00024996,7]
[332799507,1721532642255,-151.0,0.00024996,7]
[332799509,1721532642264,-151.0,0.00024996,7]
[332799511,1721532642274,-1280.37280853,0.00024996,2]
[332799513,1721532642283,-1280.37280853,0.00024996,2]
[332799515,1721532642292,-797.6,0.00024999,2]
[332799517,1721532642302,-153.0,0.00025,2]
[332799519,1721532642311,-153.0,0.00025,2]
[332799521,1721532642321,-2301888.02815891,0.00025,2]
[332799589,1721532642990,-2125.34602237,0.00025,2]
[332799661,1721532643699,-196.68336857,0.00017898,2]
[332799663,1721532643709,-503.69855761,0.00018346,2]
[332799925,1721532646447,-485.305,0.00018346,2]
[332799928,1721532646462,-824.44754239,0.00018346,2]
[332799930,1721532646474,-900.0,0.00018346,2]
[332799932,1721532646485,-949.80129572,0.00018346,2]
[332799934,1721532646496,-1456.74760428,0.00018346,2]
[332799936,1721532646505,-1147.409,0.00019137,2]
[332799938,1721532646515,-1047.57369615,0.00021346,2]
[332799942,1721532646544,-504.0,0.00020058,2]
[332799944,1721532646556,-2497.71930385,0.00021346,2]
[332799948,1721532646566,-717.905463,0.00021742,2]
[332799951,1721532646576,-1929.33186776,0.00023873,2]
[332799954,1721532646585,-5941.19285388,0.00024554,2]
[332799957,1721532646594,-203.19213464,0.00024899,2]
[332799959,1721532646603,-2022.4432734,0.00024899,2]
[332799960,1721532646612,-13482.27602957,0.00025,7]
[332799963,1721532646623,-742.5,0.00025,7]
[332800021,1721532647924,-9414.05528937,0.00013892,2]
[332800022,1721532647934,-235.81625175,0.00013999,2]
[332800023,1721532647944,-335.22190804,0.000249,2]
[332800024,1721532647956,-664.77809196,0.000249,2]
[332800025,1721532647966,-153.0,0.00024975,2]
[332800026,1721532647975,-153.0,0.00024975,2]
[332800028,1721532647985,-227.72884504,0.00025,7]
[332800047,1721532648160,-3809.3237,0.00025,7]
[332800050,1721532648172,-33500.0,0.00025,7]
[332800052,1721532648183,-2803.90825883,0.00025,7]
[332800524,1721533832428,-227.49811675,0.00013479,2]
[332800525,1721533832437,-2492.8258,0.000149,2]
[332800526,1721533832448,-170.22769456,0.00015,2]
[332800527,1721533832458,-764.66666668,0.00018007,2]
[332800528,1721533832467,-300.0,0.0001808,2]
[332800529,1721533832476,-198.82936111,0.00018107,2]
[332800530,1721533832485,-764.66666666,0.00018132,2]
[332800531,1721533832497,-764.66666666,0.00018256,2]
[332800532,1721533832509,-150.0,0.00018356,2]
[332800533,1721533832518,-166.66666666,0.00018368,2]
[332800534,1721533832528,-155.0,0.000184,2]
[332800535,1721533832537,-163.3510568,0.00018542,2]
[332800536,1721533832546,-160.26510272,0.00018679,2]
[332800537,1721533832555,-153.98568546,0.00019027,2]
[332800538,1721533832565,-190.08,0.000192,2]
[332800539,1721533832574,-153.98568546,0.00019232,2]
[332800540,1721533832583,-155.0,0.00019319,2]
[332800541,1721533832595,-198.82936111,0.00019377,2]
[332800542,1721533832607,-165.92612168,0.00019385,2]
[332800543,1721533832616,-411.558,0.00019446,2]
[332800544,1721533832627,-153.98568546,0.00019535,2]
[332800545,1721533832636,-150.0,0.00019726,2]
[332800546,1721533832645,-420.0,0.00019726,2]
[332800547,1721533832655,-567.10408335,0.0002,2]
[332800548,1721533832664,-188.4859861,0.0002,2]
[332800549,1721533832673,-155.0,0.0002,2]
[332800550,1721533832682,-9903.2349756,0.0002012,2]
[332800551,1721533832692,-153.98568546,0.00020126,2]
[332800552,1721533832701,-153.82027856,0.00020382,2]
[332800553,1721533832711,-359.51908427,0.00020439,2]
[332800554,1721533832721,-320.0,0.00020683,2]
[332800555,1721533832730,-198.82936111,0.00020747,2]
[332800556,1721533832741,-153.44109439,0.00020763,2]
[332800557,1721533832753,-157.035702,0.00020763,2]
[332800559,1721533832762,-153.98568546,0.0002084,2]
[332800560,1721533832772,-250.0,0.00020853,2]
[332800561,1721533832781,-157.08112132,0.00020882,2]
[332800562,1721533832790,-2301.89,0.00021028,2]
[332800563,1721533832800,-1000.0,0.00021045,2]
[332800564,1721533832810,-153.98568546,0.00021321,2]
[332800565,1721533832819,-153.98568546,0.00021361,2]
[332800566,1721533832832,-157.035702,0.00021386,2]
[332800567,1721533832841,-153.98568546,0.00021395,2]
[332800568,1721533832851,-190.08,0.00021463,2]
[332800569,1721533832861,-160.26510272,0.00021484,2]
[332800570,1721533832870,-167.0,0.00021513,2]
[332800571,1721533832880,-587.0,0.00021521,2]
[332800572,1721533832890,-478.95,0.00021918,2]
[332800573,1721533832899,-150.0,0.00021918,2]
[332800574,1721533832911,-258.81,0.00021918,2]
[332800575,1721533832920,-198.82936111,0.00022389,2]
[332800576,1721533832933,-167.0,0.00022401,2]
[332800577,1721533832943,-151.36587026,0.00022406,2]
[332800578,1721533832953,-150.0,0.00022495,2]
[332800579,1721533832963,-198.82936111,0.00022504,2]
[332800580,1721533832973,-1184.47636389,0.000227,2]
[332800581,1721533833087,-1815.52363611,0.000227,2]
[332800582,1721533833097,-198.82936111,0.00022716,2]
[332800583,1721533833107,-198.82936111,0.00022869,2]
[332800584,1721533833116,-198.82936111,0.00023027,2]
[332800585,1721533833126,-150.0,0.00023071,2]
[332800586,1721533833135,-163.3510568,0.00023075,2]
[332800587,1721533833144,-501.0,0.000231,2]
[332800588,1721533833154,-153.98568546,0.00023104,2]
[332800589,1721533833163,-166.66666668,0.00023126,2]
[332800590,1721533833173,-180.0,0.00023205,2]
[332800591,1721533833182,-320.0,0.00023269,2]
[332800592,1721533833192,-167.0,0.00023289,2]
[332800593,1721533833201,-5000.0,0.00023451,2]
[332800594,1721533833210,-823.0,0.0002348,2]
[332800595,1721533833220,-1929.33186776,0.00023555,2]
[332800596,1721533833229,-150.0,0.00023648,2]
[332800597,1721533833240,-1000.0,0.00023676,2]
[332800598,1721533833249,-153.98568546,0.00023695,2]
[332800599,1721533833259,-190.08,0.00023727,2]
[332800600,1721533833268,-2022.4432734,0.00024124,2]
[332800601,1721533833278,-2022.4432734,0.00024124,2]
[332800602,1721533833287,-167.0,0.00024176,2]
[332800603,1721533833296,-150.0,0.00024225,2]
[332800604,1721533833305,-198.82936111,0.00024263,2]
[332800605,1721533833315,-310.21,0.00024278,2]
[332800606,1721533833325,-400.0,0.000243,8]
[332800607,1721533833334,-900.0,0.000244,8]
[332800608,1721533833344,-198.82936111,0.00024423,2]
[332800609,1721533833353,-1400.0,0.000245,8]
[332800610,1721533833363,-198.82936111,0.00024561,2]
[332800611,1721533833372,-500.0,0.00024579,2]
[332800612,1721533833382,-1900.0,0.000246,8]
[332800613,1721533833391,-2400.0,0.000247,9]
[332800614,1721533833400,-500.0,0.00024799,2]
[332800615,1721533833410,-400.0,0.000248,9]
[332800616,1721533833420,-8472.64976037,0.000248,2]
[332800617,1721533833429,-150.0,0.00024802,2]
[332800618,1721533833438,-198.82936111,0.0002483,2]
[332800619,1721533833448,-276.62111547,0.00024899,2]
[332800620,1721533833458,-1000.0,0.000249,2]
[332800621,1721533833467,-1000.0,0.000249,2]
[332800622,1721533833477,-100000.0,0.000249,2]
[332800623,1721533833487,-35000.0,0.000249,2]
[332800624,1721533833497,-216.0,0.000249,2]
[332800625,1721533833507,-7500.0,0.000249,2]
[332800626,1721533833516,-400.0,0.000249,9]
[332800627,1721533833525,-169.35584344,0.000249,2]
[332800628,1721533833535,-313.92098382,0.000249,2]
[332800629,1721533833544,-1367.9987706,0.000249,2]
[332800630,1721533833554,-3974.83128712,0.00024979,2]
[332800631,1721533833564,-327.8147916,0.00024979,2]
[332800632,1721533833573,-154.23770086,0.00024981,2]
[332800633,1721533833583,-153.0,0.00024985,2]
[332800634,1721533833592,-764.36,0.00024989,2]
[332800635,1721533833601,-155.0,0.00024989,2]
[332800636,1721533833611,-254.2955762,0.0002499,5]
[332800637,1721533833620,-15593.5819838,0.0002499,5]
[332800638,1721533833629,-153.0,0.00024993,2]
[332800639,1721533833639,-1398.23182561,0.00024999,10]
[332800640,1721533833648,-1398.2318256,0.00024999,10]
[332800641,1721533833658,-500.0,0.00024999,2]
[332800642,1721533833667,-500.0,0.00024999,2]
[332800643,1721533833676,-397.11947458,0.00024999,2]
[332800644,1721533833686,-257.55835688,0.00024999,2]
[332800645,1721533833695,-155.0,0.00024999,2]
[332800646,1721533833705,-68728.90393682,0.00025,7]
[332800647,1721533833714,-155751.74382268,0.00025,2]
[332800648,1721533833726,-528.641867,0.00025,2]
[332800661,1721533838409,-648.37959441,0.00018079,2]
[332800662,1721533838512,-995.36520928,0.00018079,2]
[332800663,1721533838575,-1407.25632996,0.00018079,2]
[332800664,1721533838584,-270.267,0.00024493,2]
[332800665,1721533838594,-162.41659945,0.00024999,2]
[332800666,1721533838633,-555.48886355,0.00024999,2]
[332800667,1721533838643,-1644.99247441,0.00025,2]
[332800668,1721533838652,-7.74923791,0.00025,2]
[332800843,1721533840315,-2520.17937571,0.00025,2]
[332800866,1721533840523,-954.34244401,0.00025,2]
[332800869,1721533840534,-2985.6516,0.00025,2]
[332800872,1721533840556,-1110.35193382,0.00025,2]
[332800874,1721533840567,-95942.73161476,0.00025,2]
[332800878,1721533840591,-3779.77020261,0.00025,2]
[332800880,1721533840602,-573.37954002,0.00025,2]
[332800882,1721533840613,-857.69234347,0.00025,2]
[332800885,1721533840631,-2809.89847193,0.00025,2]
[332800901,1721533840771,-57105.07442558,0.00025,2]
[332800903,1721533840782,-301281.44947075,0.00025,2]
[332800905,1721533840794,-396.05309653,0.00025,2]
[332800909,1721533840818,-1431.03441451,0.00025,2]
[332800911,1721533840831,-3888.49741325,0.00025,2]
[332801159,1721533843362,-150.53,0.00019446,2]
[332801161,1721533843372,-6169.05947999,0.00025,2]
[332801167,1721533843419,-2637.97038666,0.00025,2]
[332801185,1721533843586,-2734.9,0.00025,2]
[332801191,1721533843639,-251.27288468,0.00025,2]
[332801410,1721533846804,-155.0,0.00024979,2]
[332801411,1721533846814,-194.0710275,0.00025,2]
[332801412,1721533846826,-313.99159286,0.00025,2]
[332801413,1721533846839,-6134.45000001,0.00025,2]
[332801414,1721533846852,-789.74296915,0.00025,2]
[332801415,1721533846864,-5754.33058329,0.00025,2]
[332801416,1721533846876,-2216.93544485,0.00025,2]
[332801417,1721533847013,-25853.97491358,0.00025,2]
[332801418,1721533847129,-747.54487454,0.00025,2]
[332801419,1721533847145,-1082.16293103,0.00025,2]
[332801978,1721534093768,208.0,0.00024969,120]
[332801987,1721534410074,163.84,0.00022092,30]
[332801990,1721534899257,2500.0,0.00012,2]
[332801994,1721534917310,163.84,0.00021683,30]
[332801998,1721535031608,-322.64,0.00013973,2]
[332801999,1721535031618,-2705.51974962,0.0001398,2]
[332802000,1721535031629,-150.0,0.00015,2]
[332802001,1721535031638,-200.0,0.00017,2]
[332802002,1721535031647,-292.9387,0.00017433,2]
[332802003,1721535031657,-991.0,0.000177,2]
[332802004,1721535031666,-2648.0,0.000177,2]
[332802005,1721535031676,-299.99,0.00017808,4]
[332802006,1721535031685,-499.99,0.00017808,2]
[332802007,1721535031694,-166.46008003,0.00018395,2]
[332802008,1721535031703,-166.66666666,0.00018828,2]
[332802009,1721535031713,-157.03570202,0.00018831,2]
[332802010,1721535031723,-250.0,0.00019,2]
[332802011,1721535031733,-155.60558696,0.00019334,2]